Cogmind - Beta 13 @@@ ROGUE MODE // 2024.04.03 @ 20:05:18 Player: ConfusedWizard Result: Self-destructed Performance ------------- Evolutions (1) 500 Regions Visited (2) 400 Robots Destroyed (11) 55 Value Destroyed (79) 79 Prototype IDs (2) 40 Alien Tech Used (0) 0 Bonus (0) 0 TOTAL SCORE: 1074 Bonus ------- None Cogmind --------- Core Integrity 357/400 Matter 252/300 Energy 199/250 System Corruption 0% Temperature Cool (0) Movement Flying (32) Location -9/Materials Parts ------- > --- POWER (1) -------- Ion Engine > --- PROPULSION (2) --- Cesium-ion Thruster Cesium-ion Thruster > --- UTILITY (4) ------ ECM Suite > --- WEAPON (2) ------- (None) > --- INVENTORY (5) ---- Ion Engine Cesium-ion Thruster Cesium-ion Thruster Advanced Weight Redist. System Advanced Weight Redist. System Peak State ------------ > --- POWER ------------ Ion Engine > --- PROPULSION ------- Cesium-ion Thruster Cesium-ion Thruster > --- UTILITY ---------- Small Storage Unit Advanced Weight Redist. System ECM Suite > --- WEAPON ----------- Light Assault Rifle > --- INVENTORY -------- Ion Engine Flight Unit Cesium-ion Thruster Cesium-ion Thruster Improved Heat Sink Advanced Weight Redist. System Advanced Weight Redist. System Advanced Weight Redist. System [Rating: 15] Favorites ----------- Power Ion Engine Engine Ion Engine Propulsion Wheel Wheel Wheel Flight Unit Cesium-ion Thruster Utility Small Storage Unit Device ECM Suite Storage Small Storage Unit Weapon Light Assault Rifle Energy Gun EM Pulse Gun Ballistic Gun Light Assault Rifle Build | -11 -10 -9 ------- Run | Yrd Mat Mat Slots Evolved 2 | . . 2 Power . | . . . Propulsion . | . . . Utility 2 | . . 2 Weapon . | . . . Parts Attached 14 | 6 4 4 Power 1 | 1 . . Engine 1 | 1 . . Core . | . . . Reactor . | . . . Propulsion 7 | 3 2 2 Treads . | . . . Leg . | . . . Wheel 3 | 3 . . Hover . | . . . Flight 4 | . 2 2 Utility 4 | 1 1 2 Device 2 | . 1 1 Storage 2 | 1 . 1 Processor . | . . . Hackware . | . . . Protection . | . . . Artifact . | . . . Weapon 2 | 1 1 . Energy Gun 1 | 1 . . Energy Cannon . | . . . Ballistic Gun 1 | . 1 . Ballistic Cannon . | . . . Launcher . | . . . Special Weapon . | . . . Impact Weapon . | . . . Slashing Weapon . | . . . Piercing Weapon . | . . . Special Melee Weapon . | . . . Unidentified Prototypes . | . . . Parts Lost 2 | . 1 1 Power . | . . . Propulsion . | . . . Utility . | . . . Weapon 2 | . 1 1 Highest Loss Streak 1 | . 1 1 To Critical Strikes . | . . . Average Slot Usage (%) 76 | . 78 72 Engine 12 | . 14 11 Wheel 9 | . 15 . Flight 16 | . 12 22 Device 15 | . 13 20 Storage 8 | . 8 9 Energy Gun 4 | . 6 . Ballistic Gun 7 | . 7 9 Naked Turns . | . . . Heaviest Build 14 | 12 14 13 Greatest Support 26 | 26 20 19 Greatest Overweight (x) 1 | . 1 . Average Overweight (x) . | . . . Largest Inventory Capacity 8 | 8 8 8 Average Capacity 7 | 7 6 7 Most Carried 8 | 2 3 8 Average Carried 2 | . . 6 Final Capacity 8 | 8 5 5 Final Carried 5 | . 3 5 Class Distribution -------------------- 77% | Mutant 22% | Sprinter Dominant Class ---------------- Mutant | -10/Materials Sprinter | -9/Materials Resources | -11 -10 -9 ----------- Run | Yrd Mat Mat Matter Collected 308 | 181 127 . Remotely . | . . . Salvage Created 290 | 248 42 . Parts 28 | 24 4 . Haulers Intercepted . | . . . Recyclers Shooed . | . . . Parts Field Recycled . | . . . Retrieved Matter . | . . . Parts Self-Destructed . | . . . Prevented . | . . . Kills | -11 -10 -9 ------- Run | Yrd Mat Mat Combat Hostiles Destroyed 2 | . 2 . Guns 2 | . 2 . Classes Destroyed 5 | 3 2 . Worker 2 | 2 . . Tunneler 5 | 5 . . Recycler 1 | 1 . . Watcher 1 | . 1 . Swarmer 2 | . 2 . Best Kill Streak 5 | 5 2 . Combat Bots Only 2 | . 2 . Max Kills in Single Turn 1 | 1 1 . Gunslinging . | . . . Exploded . | . . . Melee . | . . . Uniques/NPCs Destroyed . | . . . Combat | -11 -10 -9 -------- Run | Yrd Mat Mat Hostile Shots Fired 47 | . 17 30 Missed 15 | . 3 12 Damage Taken 316 | . 120 196 Core 62 | . 19 43 Absorbed by Shields . | . . . Core Remaining (%) 96 | 100 92 . Volleys Fired 49 | 19 20 10 Largest 1 | 1 1 1 Hottest 40 | 40 40 20 Shots Fired 49 | 19 20 10 Gun 49 | 19 20 10 Cannon . | . . . Launcher . | . . . Special . | . . . Kinetic 26 | . 16 10 Thermal . | . . . Explosive . | . . . Electromagnetic 23 | 19 4 . Robot Hit Streak 8 | 4 6 8 Robot Miss Streak 4 | 1 4 1 Penetration Max . | . . . Secondary Targets . | . . . Shots Hit Robots 29 | 13 13 3 Core Hits 15 | 8 5 2 Critical Kills . | . . . Critical Parts Destroyed . | . . . Critical Strikes . | . . . Melee Attacks . | . . . Impact . | . . . Slashing . | . . . Piercing . | . . . Sneak Attacks . | . . . Combat Hostiles . | . . . Follow-up Attacks . | . . . Damage Inflicted 313 | 176 108 29 Guns 313 | 176 108 29 Cannons . | . . . Explosions . | . . . Melee . | . . . Ramming . | . . . Kinetic 116 | . 87 29 Thermal . | . . . Explosive . | . . . Electromagnetic 197 | 176 21 . Impact . | . . . Slashing . | . . . Piercing . | . . . Highest Corruption . | . . . Average Corruption . | . . . Corruption Purged . | . . . Corruption Blocked . | . . . Overload Shots . | . . . Overflow Damage . | . . . Projectiles . | . . . Explosions . | . . . Melee . | . . . Knockbacks . | . . . Impact . | . . . Kinetic . | . . . Secondary . | . . . Self-Inflicted Damage . | . . . Shots . | . . . Rammed . | . . . Targets Rammed . | . . . Kicked . | . . . Crushed . | . . . Highest Temperature 20 | 20 6 8 Average Temperature 6 | 20 3 3 Received Heat Transfer 36 | . . 36 Siege Activations . | . . . Robots Corrupted . | . . . Combat Hostiles . | . . . Parts Fried 1 | 1 . . Impact Corruptions . | . . . Robots Melted . | . . . Combat Hostiles . | . . . Parts Melted . | . . . Heat Transferred . | . . . Parts Sabotaged . | . . . Parts Stolen . | . . . Parts Stripped . | . . . Power Chain Reactions . | . . . Alert | -11 -10 -9 ------- Run | Yrd Mat Mat Peak Influence 153 | 40 153 137 Initial 64 | . 26 64 Average 56 | 17 59 90 Maximum Alert Level . | . . . Low Security (%) 100 | 100 100 100 Level 1 . | . . . Level 2 . | . . . Level 3 . | . . . Level 4 . | . . . Level 5 . | . . . High Security . | . . . Max Security . | . . . Squads Dispatched 1 | . 1 . Investigation . | . . . Extermination . | . . . Reinforcement 1 | . 1 . Assault . | . . . Garrison . | . . . Intercept . | . . . Searches Triggered . | . . . Construction Impeded . | . . . Haulers Reinforced . | . . . Active Scanning Responses . | . . . Cargo Convoy Interrupts . | . . . Stealth | -11 -10 -9 --------- Run | Yrd Mat Mat Distress Signals 1 | . . 1 Communications Jammed . | . . . Distress Signals . | . . . Times Spotted 29 | . 9 20 Peak Tracking Total 17 | . 3 17 Tactical Retreats 2 | . . 2 Traps | -11 -10 -9 ------- Run | Yrd Mat Mat Traps Triggered . | . . . Indirectly . | . . . Trap Hack Attempts . | . . . Triggered . | . . . Disarmed . | . . . Reprogrammed . | . . . Reused . | . . . Traps Extracted . | . . . Installed . | . . . Triggered . | . . . Machines | -11 -10 -9 ---------- Run | Yrd Mat Mat Machines Disabled . | . . . Max in Single Turn . | . . . Machines Repaired . | . . . Machines Dismantled . | . . . Machines Sabotaged . | . . . Overloaded Fab Kills . | . . . Hacking | -11 -10 -9 --------- Run | Yrd Mat Mat Machines Accessed 6 | . 4 2 Terminals 6 | . 4 2 Fabricators . | . . . Repair Stations . | . . . Recycling Units . | . . . Scanalyzers . | . . . Garrison Access . | . . . Total Hacks 15 | . 10 5 Successful 10 | . 7 3 Failed 5 | . 3 2 Catastrophic . | . . . Database Lockouts . | . . . Manual . | . . . Terminals 15 | . 10 5 Fabricators . | . . . Repair Stations . | . . . Recycling Units . | . . . Scanalyzers . | . . . Garrison Access . | . . . Terminal Hacks 10 | . 7 3 Record 2 | . 2 . Prototype ID Bank 1 | . 1 . Terminal Index 2 | . 1 1 Alert Level 1 | . 1 . Locate Traps 1 | . . 1 Dispatch Records 2 | . 1 1 Recall Investigation 1 | . 1 . Fabricator Hacks . | . . . Repair Station Hacks . | . . . Recycling Unit Hacks . | . . . Scanalyzer . | . . . Garrison Access Hacks . | . . . Unauthorized Hacks . | . . . Terminals . | . . . Fabricators . | . . . Repair Stations . | . . . Recycling Units . | . . . Scanalyzers . | . . . Garrison Access . | . . . Data Cores Recovered . | . . . Used . | . . . Hacking Detections 5 | . 3 2 Full Trace Events . | . . . Feedback Events . | . . . Feedback Blocked . | . . . Robot Schematics Acquired . | . . . Robots Built . | . . . Authchips . | . . . Time . | . . . Total Robot Build Rating . | . . . Part Schematics Acquired . | . . . Parts Built . | . . . Authchips . | . . . Time . | . . . Total Part Build Rating . | . . . Parts Repaired . | . . . Time . | . . . Parts Recycled . | . . . Recycled Matter . | . . . Retrieved Matter . | . . . Retrieved Components . | . . . Parts Scanalyzed . | . . . Part Schematics Acquired . | . . . Parts Damaged . | . . . Bothacking | -11 -10 -9 ------------ Run | Yrd Mat Mat Used RIF Installer . | . . . Robots Hacked . | . . . Non-combat . | . . . Combat . | . . . Robot Hacks Applied . | . . . Relay Couplers Released . | . . . Fabnet Peak Effective % . | . . . Robots Rewired . | . . . Allies Hacked . | . . . Hacks Repelled . | . . . Allies | -11 -10 -9 -------- Run | Yrd Mat Mat Total Allies . | . . . Largest Group . | . . . Highest-Rated Group . | . . . Highest-Rated Ally . | . . . Total Orders . | . . . Ally Attacks . | . . . Total Damage . | . . . Kills . | . . . Allies Corrupted . | . . . Allies Melted . | . . . Intel | -11 -10 -9 ------- Run | Yrd Mat Mat Robot Analysis Total . | . . . Derelict Logs Recovered . | . . . Drone Launches . | . . . Drone Recoveries . | . . . Exploration | -11 -10 -9 ------------- Run | Yrd Mat Mat Turns Passed 546 | 140 262 144 Spaces Moved 782 | 97 378 307 Core 7 | 7 . . Treads . | . . . Legs . | . . . Wheels 241 | 90 151 . Hover . | . . . Flight 534 | . 227 307 Fastest Speed 32 | 50 37 32 Average Speed 50 | 86 56 32 Slowest Speed 117 | 90 117 37 Overloaded Moves . | . . . Propulsion Burnouts . | . . . Robots Hopped 5 | . . 5 Cave-ins Triggered . | . . . Exploration Rate (%) 28 | 5 55 26 Regions Visited 2 Branch Regions . Pre-discovered Areas . | . . . Known Exits Taken . | . . . Unknown Exits Taken 2 | 1 1 . Scrap Searched . | . . . Spaces Dug . | . . . Terrain Destroyed . | . . . Melee . | . . . Projectile . | . . . AOE . | . . . Terrain Rammed . | . . . Walls Destroyed . | . . . Machines Disabled . | . . . Actions | -11 -10 -9 --------- Run | Yrd Mat Mat Total 888 | 134 410 344 Wait 14 | 2 . 12 Move 770 | 96 377 297 Hop 5 | . . 5 Pick Up 23 | 8 6 9 Fast Attach . | . . . Attach 9 | 5 2 2 Detach 1 | . 1 . Swap 5 | 1 2 2 Drop 12 | 3 2 7 Fire 49 | 19 20 10 Melee . | . . . Ram . | . . . Kick . | . . . Crush . | . . . Escape Stasis . | . . . Rewire . | . . . Trap . | . . . Miscellaneous . | . . . Route ------- -11/Scrapyard -10/Materials (discovered 2 exits: *Mat / [*Min]) -9/Materials History --------- Turn | Location | Event 3 | -11/Scrapyard | Discovered new exit (range 15) 141 | -11/Scrapyard | Entered Materials 319 | -10/Materials | Discovered new exit (range 14) 323 | -10/Materials | Build established: Mutant 362 | -10/Materials | Discovered new exit (range 6) 403 | -10/Materials | Entered another Materials area 403 | -9/Materials | Evolved 2 slots: Utility x2 547 | -9/Materials | Self-destructed Last Messages --------------- Found 3 traps in 1 array: 3x Alarm Trap Map updated. K-01 Serf collects debris. Connecting with Terminal... >>Enumerate(Squads) Retrieving dispatch records... Found 26 active squads: 10x Security 5x Surveillance 5x Patrol 6x Transport W-16 Scout sends out distress signal. K-01 Serf cleans the Atomic Centrifuge. Lgt. Assault Rifle destroyed. K-01 Serf collects debris. Dropped Imp. Heat Sink. Dropped Adv. Weight Redist. System. Dropped Sml. Storage Unit. Dropped Adv. Weight Redist. System. Map ----- +----------------------------------------------------+ | """" ???????????????????????????????? | | ??????????????????????????????? | | # ! ??????????????????????????????? | | ##/######## ###????????????????????????????????? | | #?? #??????????????????????????????????? | | #?? #??????????????????????????????????? | | " """ #?? #??????????????????????????????????? | | " """ #?? #??????????????????????????????????? | | """ #?# #??????????????????????????????????? | | #?# #??????????????????????????????????? | | ## #??????????????????????????????????? | | ########### #??????????????????????????????????? | | ## # #??????????????????????????????????? | | ## """ # #??????????????????????????????????? | | ## """ # #??????????????????????????????????? | | ## = """ # #??????????????????????????????????? | | ## + #??????????????????????????????????? | | ##! """ # #??????????????????????????????????? | | ## """ # #??????????????????????????????????? | | ## """!# #??????????????????????????????????? | | # !!!# +??????????????????????????????????? | | #+##/##### #??????????????????????????????????? | | # #???# ##############?????????????????????? | | #???# # s * #?????????????????????? | | ^ #???# # "" """ #?????????????????????? | | """ ##### / "T """ @ #?????????????????????? | | """ # "" """ #?????????????????????? | | """ ##### # s #?????????????????????? | | ######+###############?????????????????????? | | # [ #?????????????????????????????? | | ####### """ #?????????????????????????????? | | ??????# """ ""T"" #?????????????????????????????? | | ??????# """ """"" #?????????????????????????????? | | ??????# #?????????????????????????????? | | ??????##############?????????????????????????????? | | | | | | | | | | | | | | | | | | | | | | | | | | | | | | | +----------------------------------------------------+ Best States ------------- Heat Dissipation 28 Energy Generation 10 Energy Capacity 250 Matter Stores 299 Matter Capacity 300 Sight Range 16 Terrain Scan Density 10 ECM Strength 1 Additional Mass Support 9 Evasion (%) 63 Item Schematics ----------------- None Robot Schematics ------------------ None Fabricated ------------ Nothing Alien Tech Used ----------------- None Achievements -------------- None Challenges ------------ None Game ------ Seed LinkedImprinterMeganuke Manual? 0 Play Time 00:12:55 Cumulative 0.7 hours Start 2024.04.03 @ 19:49:48 End 2024.04.03 @ 20:05:18 Sessions 2 Manual Loads 0 Difficulty Rogue Special Mode None Game No. 3 Rogue 3 Adventurer 0 Explorer 0 Win Type - Total 0 Types 0/0/0/0/0/0/0/0/0 Lore% 1 Gallery% 3 Achievement% 4 Wizard Run 0 Options --------- Layout 1 ASCII 0 Keyboard 0 Movement Mouse Keybinds 0 Fullscreen 1 Font 32/SmallcapsGlow Map View 50x35 Zoom Use 0% Tactical HUD 0 Map Filters NONE Filters NONE Steam 1 RUN: cbe543f6-5cdc-40c5-bb94-26faa24a658b